bitfinex/quotes_ETHUSD_20250115
["timestamp","ask_amount","ask_price","bid_price","bid_amount"]
[1736900030641,0.7652,3233.1,3232.4,3.09367]
[1736900030847,0.04511476,3232.8,3232.2,3.71956972]
[1736900031040,0.03214501,3233.0,3232.3,0.37195697]
[1736900031237,0.03214501,3233.0,3232.3,3.46571697]
[1736900031423,0.04511476,3232.9,3232.3,0.37195697]
[1736900031640,0.04511476,3232.9,3232.2,3.71958972]
[1736900032141,0.04511476,3232.9,3232.2,3.09385]
[1736900032338,0.7929,3232.8,3232.1,0.61570112]
[1736900032661,0.03214501,3232.7,3232.1,0.61570112]
[1736900033060,0.7929,3232.8,3232.2,0.03093686]
[1736900033364,0.7929,3232.8,3232.3,3.09372]
[1736900033588,0.7929,3232.8,3232.4,0.31246569]
[1736900033743,0.04514247,3232.7,3232.4,0.31246569]
[1736900034140,0.7929,3232.8,3232.3,3.09377]
[1736900034469,0.7929,3232.8,3232.4,3.09359]
[1736900034633,0.04514247,3232.7,3232.4,3.09359]
[1736900034832,0.7929,3232.8,3232.4,3.09359]
[1736900035368,0.04526439,3232.7,3232.4,3.09359]
[1736900035673,0.04526439,3232.7,3232.5,0.6806706]
[1736900035882,0.7929,3233.2,3232.5,0.6806706]
[1736900036036,0.03214501,3233.1,3232.5,3.7742106]
[1736900036237,0.0774094,3233.1,3232.5,3.7742106]
[1736900036650,0.04526439,3233.1,3232.5,3.7742106]
[1736900036845,0.0774094,3233.1,3232.5,0.6806706]
[1736900037178,0.0774094,3233.1,3232.3,3.88628]
[1736900037536,0.04526439,3233.1,3232.4,3.0936]
[1736900037943,0.04526439,3233.1,3232.5,3.09356]
[1736900038149,0.04526439,3233.1,3232.6,3.12441329]
[1736900038768,0.04526439,3233.1,3232.6,3.09348]
[1736900039267,0.04526439,3233.1,3232.7,0.309348]
[1736900039659,0.04526439,3233.1,3232.9,3.09316]
[1736900040032,3.09272,3233.4,3232.7,0.309348]
[1736900040256,0.7929,3233.2,3232.4,3.09361]
[1736900040456,0.03214501,3233.1,3232.4,3.09361]
[1736900040665,0.07765316,3233.1,3232.4,3.09361]
[1736900042771,0.07765316,3233.1,3232.5,3.09358]
[1736900042974,0.04550815,3233.1,3232.5,3.09358]
[1736900043150,0.04550815,3233.1,3232.5,3.48529133]
[1736900043474,0.7929,3233.2,3232.5,3.48529133]
[1736900043654,0.7929,3233.2,3232.5,0.39171133]
[1736900043853,0.04395262,3233.1,3232.6,0.03093332]
[1736900044059,0.04395262,3233.1,3232.3,0.7926]
[1736900044060,0.04395262,3233.1,3232.8,3.09329]
[1736900044270,0.7929,3233.2,3232.8,0.309329]
[1736900044441,0.8327,3233.5,3233.0,3.09307]
[1736900044639,0.04395262,3233.1,3233.0,3.09307]
[1736900044852,0.8327,3233.5,3233.0,3.09307]
[1736900045286,0.04397478,3233.4,3233.1,3.093]
[1736900049311,0.04397478,3233.4,3233.2,3.0929]
[1736900049476,0.04397478,3233.4,3233.3,0.30929]
[1736900049809,0.03214501,3233.8,3233.3,0.30929]
[1736900049977,0.03214501,3233.8,3233.2,3.0929]
[1736900050162,0.04285314,3233.7,3233.2,3.0929]
[1736900050352,0.03214501,3233.8,3233.2,3.0929]
[1736900050554,0.03214501,3233.8,3233.0,3.09307]
[1736900050555,0.04285314,3233.7,3233.0,3.09307]
[1736900050755,0.8327,3233.6,3232.7,0.195]
[1736900050981,0.07506461,3233.5,3232.8,3.797799]
[1736900051195,0.0429196,3233.5,3232.8,3.797799]
[1736900051489,0.8327,3233.6,3232.9,3.09319]
[1736900051994,0.07506461,3233.5,3232.9,3.09319]
[1736900052194,0.07506461,3233.5,3232.8,0.704559]
[1736900052423,0.8327,3233.4,3232.5,3.09349]
[1736900052711,0.03214501,3233.3,3232.6,0.309349]
[1736900052874,0.07500369,3233.3,3232.3,4.04595]
[1736900053207,0.8327,3233.2,3232.3,4.04595]
[1736900053404,0.03214501,3233.1,3232.3,4.04595]
[1736900053706,0.07518096,3233.1,3232.3,3.09375]
[1736900054081,3.09319,3233.0,3232.1,3.0]
[1736900054285,0.86484501,3232.9,3232.1,3.9014576]
[1736900054488,0.87557531,3232.9,3232.1,3.9014576]
[1736900054689,0.8327,3232.9,3232.1,3.9014576]
[1736900054891,0.03214501,3232.8,3232.1,3.9014576]
[1736900055101,0.8327,3232.9,3232.2,5.95145241]
[1736900055280,0.8327,3232.9,3232.4,3.09363]
[1736900055779,0.04279221,3232.8,3232.4,3.09363]
[1736900055998,0.04279221,3232.8,3232.3,0.685291]
[1736900056188,0.07493722,3232.8,3232.0,3.09402]
[1736900056383,0.8327,3232.7,3232.0,3.09402]
[1736900056608,0.03214501,3232.6,3231.9,3.11551596]
[1736900056910,0.7684,3232.5,3231.6,0.62395062]
[1736900057115,0.03214501,3232.4,3231.7,0.46883006]
[1736900057317,0.07453837,3232.4,3231.7,0.46883006]
[1736900057477,0.07453837,3232.4,3231.6,3.09442]
[1736900057678,0.04239336,3232.4,3231.9,3.09407]
[1736900057878,0.04239336,3232.4,3231.9,3.12500805]
[1736900058118,0.7684,3232.5,3231.9,3.09407]
[1736900058304,0.7684,3232.5,3231.9,3.48406081]
[1736900058798,0.7684,3232.5,3231.9,0.38999081]
[1736900059003,0.7684,3232.5,3231.8,3.09423]
[1736900059198,0.04231026,3232.4,3231.9,3.09413]
[1736900059400,0.04231026,3232.4,3232.0,0.03093805]
[1736900059608,0.04231026,3232.4,3232.3,3.09377]
[1736900059913,0.03214501,3232.8,3232.1,3.09391]
[1736900060118,0.03214501,3232.8,3232.1,3.69844609]
[1736900060416,0.04216063,3232.7,3232.1,3.69844609]
[1736900062978,0.03214501,3232.8,3232.1,3.69844609]
[1736900063184,0.04216063,3232.6,3232.1,3.69844609]
[1736900063378,0.7684,3232.9,3232.2,3.09383]
[1736900063653,0.04216063,3232.5,3232.3,0.37293016]
[1736900063816,0.03214501,3232.8,3232.3,0.37293016]
[1736900064022,0.03214501,3232.8,3231.5,3.91956549]
[1736900064023,3.8618,3232.7,3231.7,3.09433]
[1736900064218,0.03214501,3232.6,3231.7,3.09433]
[1736900064406,0.7684,3232.5,3231.5,4.69454549]
[1736900064613,0.7684,3232.3,3231.5,3.28953]
[1736900064821,0.03214501,3232.2,3231.5,3.28953]
[1736900064983,0.7684,3232.1,3231.2,0.7749]
[1736900065322,0.03214501,3232.0,3231.0,3.11551596]
[1736900065486,0.03214501,3232.0,3231.3,3.0947]
[1736900065912,0.04237121,3231.9,3231.3,3.0947]
[1736900066295,0.04237121,3231.9,3231.1,0.6985526]
[1736900066296,0.7684,3231.8,3231.1,0.6985526]
[1736900066519,0.03214501,3231.7,3231.1,0.6985526]
[1736900066721,0.04204977,3231.6,3231.1,3.6985526]
[1736900067029,0.04204977,3231.6,3231.1,3.82440837]
[1736900067323,0.7684,3231.8,3231.2,0.69399243]
[1736900067501,0.04204977,3231.7,3231.2,0.69399243]
[1736900067698,0.04204977,3231.7,3231.3,2.95146173]
[1736900067899,0.7684,3231.8,3231.3,6.04613173]
[1736900068214,0.04204977,3231.7,3231.3,6.01518596]
[1736900068414,0.04204977,3231.7,3231.4,0.67091784]
[1736900068628,0.7684,3231.8,3231.2,0.69399243]
[1736900068839,0.04204977,3231.6,3231.1,3.0]
[1736900069024,0.03214501,3231.7,3231.1,3.0]
[1736900069325,0.7684,3231.6,3230.9,3.09509]
[1736900069531,0.07378469,3231.5,3230.9,3.09509]
[1736900070531,0.7684,3231.4,3230.7,3.09528]
[1736900070716,0.07380686,3231.3,3230.7,3.09528]
[1736900070913,0.07380686,3231.3,3230.5,3.70877035]
[1736900071095,0.7684,3231.2,3230.5,4.37169898]
[1736900071708,0.7684,3231.2,3230.5,1.27622898]
[1736900071903,0.04137361,3231.1,3230.5,0.61330035]
[1736900072431,0.04137361,3231.1,3230.5,3.70877035]
[1736900072831,0.04137361,3231.1,3230.7,2.92051596]
[1736900072996,0.04137361,3231.1,3230.9,3.0951]
[1736900073195,0.7684,3231.2,3230.9,3.0951]
[1736900073402,0.7684,3231.2,3230.9,3.69975651]
[1736900074733,3.09418,3231.9,3230.9,0.60465651]
[1736900074734,0.80054501,3231.8,3230.9,0.60465651]
[1736900074891,0.0411186,3231.7,3230.7,0.7749]
[1736900075113,3.09455,3231.5,3230.4,9.01606596]
[1736900075297,0.80054501,3231.4,3230.4,9.01606596]
[1736900075499,0.7684,3231.4,3230.7,3.09529]
[1736900075799,0.0411186,3231.3,3230.8,0.309529]
[1736900076832,0.0411186,3231.3,3231.0,2.92051596]
[1736900077031,0.0411186,3231.3,3231.2,3.09482]
[1736900077205,0.7684,3231.6,3231.2,3.09482]
[1736900077601,0.04097442,3231.5,3231.2,3.09482]
[1736900078331,0.04097442,3231.5,3231.2,3.6963536]
[1736900079302,0.04097442,3231.5,3231.2,0.6015336]
[1736900080332,3.09377,3232.3,3230.8,4.179579]
[1736900080333,0.7684,3231.9,3231.3,6.0461705]
[1736900080636,0.04131816,3231.8,3231.3,6.01522596]
[1736900080821,0.07346317,3231.8,3230.9,3.0]
[1736900081136,0.7684,3231.7,3230.8,0.309529]
[1736900081333,0.7684,3231.7,3230.9,3.09507]
[1736900081637,0.07348536,3231.6,3230.9,3.09507]
[1736900081812,0.07348536,3231.6,3230.9,3.7355299]
[1736900085950,0.07348536,3231.6,3230.9,0.6404599]
[1736900086112,0.07348536,3231.6,3230.7,6.0953]
[1736900086313,0.7684,3231.5,3230.7,6.0953]
[1736900086527,0.07338556,3231.4,3230.7,6.0953]
[1736900087548,0.07338556,3231.4,3230.5,0.7749]
[1736900087745,0.7802,3231.3,3230.5,3.09542]
[1736900087910,0.0731527,3231.2,3230.3,6.01616596]
[1736900088245,0.7802,3231.1,3230.4,0.6800866]
[1736900088613,0.03214501,3231.0,3230.4,0.6800866]
[1736900088952,0.07316379,3231.0,3230.3,2.92051596]
[1736900089122,0.07316379,3231.0,3230.0,4.31817507]
[1736900089335,0.7802,3230.9,3230.0,7.41413507]
[1736900089619,0.07317489,3230.8,3230.1,3.0]
[1736900090256,0.07317489,3230.8,3230.1,6.09578]
[1736900090614,0.04102988,3230.8,3230.2,4.05867551]
[1736900090820,0.04102988,3230.8,3230.2,4.08962928]
[1736900091152,0.04102988,3230.8,3230.7,3.0953]
[1736900091362,0.8053,3230.9,3230.3,0.7847]
[1736900091542,0.8053,3230.9,3230.6,3.09538]
[1736900091943,0.8053,3230.9,3230.3,0.76681415]
[1736900092262,0.8053,3230.9,3230.2,2.92051596]
[1736900092556,0.07138439,3230.8,3230.2,2.92051596]
[1736900094265,0.03923938,3230.8,3230.2,6.01627596]
[1736900094623,0.8053,3230.9,3230.3,3.0956]
[1736900094828,0.8053,3230.9,3230.5,2.92051596]
[1736900095025,0.8053,3230.9,3230.6,0.3260985]
[1736900095226,0.03911727,3230.8,3230.7,3.09525]
[1736900095446,0.8053,3231.6,3230.6,0.3260985]
[1736900095651,0.8053,3231.9,3231.4,3.0]
[1736900095957,0.8053,3232.3,3231.9,3.09411]
[1736900096168,0.8053,3232.3,3232.1,2.92051596]
[1736900096349,0.8053,3233.2,3232.1,6.01447596]
[1736900096547,3.89821,3233.2,3232.1,6.01447596]
[1736900096864,0.3930355,3233.1,3232.1,6.01447596]
[1736900097159,0.8053,3233.0,3232.1,6.01447596]
[1736900097364,0.8053,3233.0,3232.1,3.09396]
[1736900097564,0.8053,3232.8,3231.9,6.09415]
[1736900097781,0.8053,3232.6,3231.9,3.0]
[1736900097980,0.8053,3232.6,3231.8,2.92051596]
[1736900097981,0.06952041,3232.5,3231.7,3.28932]
[1736900098260,0.8053,3232.4,3231.7,0.195]
[1736900098465,0.03214501,3232.3,3231.7,0.195]
[1736900098831,0.0373643,3232.2,3231.7,0.195]
[1736900099343,0.03214501,3232.3,3231.7,0.195]
[1736900099554,0.0373643,3232.2,3231.7,3.28929]
[1736900099757,0.03214501,3232.3,3231.7,0.195]
[1736900100069,0.8425089,3232.2,3231.3,3.09469]
[1736900100247,0.8425089,3232.2,3231.5,3.09449]
[1736900100431,0.8425089,3232.2,3231.5,6.04594803]
[1736900100627,0.03214501,3232.1,3231.3,3.9962106]
[1736900100859,0.03214501,3232.1,3231.4,3.09458]
[1736900101260,0.0372089,3232.0,3231.5,3.09453]
[1736900102571,0.0372089,3232.0,3231.6,3.09436]
[1736900102748,0.8053,3232.2,3231.6,3.09436]
[1736900103072,0.0372089,3232.1,3231.4,3.09461]
[1736900103275,0.7652,3232.0,3231.0,0.611263]
[1736900103447,0.7652,3231.7,3230.7,3.09527]
[1736900103802,3.0,3232.2,3230.6,2.92051596]
[1736900103803,0.7652,3231.5,3230.6,2.95146495]
[1736900103959,0.03717559,3231.6,3231.2,2.92051596]
[1736900104279,2.92051596,3232.9,3231.2,2.92051596]
[1736900104280,0.7652,3232.5,3231.6,3.09441]
[1736900104489,0.7652,3232.5,3231.7,3.09433]
[1736900104691,0.7652,3232.5,3231.8,2.92051596]
[1736900104973,0.7652,3232.5,3232.0,3.09404]
[1736900105182,0.7652,3232.5,3232.1,3.09395]
[1736900105393,0.7652,3232.5,3231.8,2.92051596]
[1736900105594,0.03214501,3232.4,3231.5,2.92051596]
[1736900105752,0.42123651,3232.4,3231.5,6.01504596]
[1736900105961,0.7652,3232.3,3231.5,6.01504596]
[1736900106182,0.7652,3232.1,3231.2,2.92051596]
[1736900106384,0.7652,3232.1,3231.3,0.03094573]
[1736900106695,0.03214501,3232.0,3231.2,2.92051596]
[1736900106840,0.7652,3231.9,3231.2,2.92051596]
[1736900107039,0.03214501,3231.8,3231.2,2.92051596]
[1736900107455,0.03214501,3231.8,3230.9,6.01561596]
[1736900107798,0.7652,3231.6,3230.7,3.09529]
[1736900108088,0.7652,3231.6,3230.7,3.0]
[1736900108301,0.7652,3231.6,3231.2,6.01524596]
[1736900108440,0.7652,3232.2,3231.3,3.09467]
[1736900108642,0.7652,3232.2,3231.4,3.09458]
[1736900109103,0.03214501,3232.1,3231.4,3.09458]
[1736900109409,0.7652,3232.2,3231.4,3.09458]
[1736900109559,0.7652,3232.2,3231.2,2.92051596]
[1736900109764,0.7652,3232.0,3230.9,2.92051596]
[1736900109970,0.7652,3231.7,3230.9,2.92051596]
[1736900110277,1.1543605,3231.7,3230.9,2.95146388]
[1736900110464,1.1543605,3231.7,3231.2,2.92051596]
[1736900110465,0.7652,3231.7,3231.2,2.92051596]
[1736900110664,0.7652,3231.7,3231.4,3.09462]
[1736900111465,0.7509,3232.3,3231.4,3.09462]
[1736900111863,0.03610301,3232.2,3231.4,3.09462]
[1736900112226,0.03610301,3232.2,3231.5,2.95145841]
[1736900112375,0.03610301,3232.2,3232.1,2.92051596]
[1736900112567,0.7509,3232.6,3232.1,2.92051596]
[1736900112767,0.03606968,3232.5,3232.1,2.92051596]
[1736900113007,0.06821469,3232.5,3232.1,2.92051596]
[1736900113500,0.03606968,3232.5,3232.1,2.92051596]
[1736900113711,0.03606968,3232.5,3231.9,3.09413]
[1736900113712,0.06821469,3232.5,3231.9,3.09413]
[1736900115185,0.03606968,3232.5,3231.9,3.09413]
[1736900115367,0.03606968,3232.5,3231.8,2.92051596]
[1736900115573,0.06821469,3232.5,3231.8,2.92051596]
[1736900115805,0.7509,3232.4,3231.8,2.92051596]
[1736900115983,0.06838689,3232.3,3231.8,2.92051596]
[1736900116187,0.03624188,3232.3,3231.8,6.01474596]
[1736900116508,0.06838689,3232.3,3231.8,2.92051596]
[1736900117208,0.03624188,3232.3,3231.8,6.01466596]
[1736900117413,0.03624188,3232.3,3231.9,3.09413]
[1736900117975,0.03624188,3232.3,3232.1,2.92051596]
[1736900118183,0.7587,3232.8,3232.2,3.09386]
[1736900118513,0.06894791,3232.7,3232.1,2.92051596]
[1736900118872,0.06894791,3232.7,3231.8,2.92051596]
[1736900119075,0.7587,3232.6,3231.8,6.01472596]
[1736900119274,0.03214501,3232.5,3231.8,6.01472596]
[1736900119510,0.03685288,3232.5,3231.8,6.01472596]
[1736900119714,0.7587,3232.6,3232.1,3.09386]
[1736900120097,0.03687509,3232.5,3232.1,3.09386]
[1736900120324,0.03687509,3232.5,3231.9,3.82913956]
[1736900120531,0.03687509,3232.5,3232.4,6.01418596]
[1736900120684,0.7587,3233.3,3232.7,3.09338]
[1736900120891,1.36657,3233.3,3232.7,2.92051596]
[1736900121086,0.03688065,3233.2,3233.1,3.093]
[1736900121631,0.03214501,3233.5,3233.0,2.92051596]
[1736900121814,0.03214501,3233.5,3232.9,3.09317]
[1736900121994,0.03694171,3233.4,3232.9,3.09317]
[1736900122327,0.03694171,3233.4,3233.0,6.01360596]
[1736900122721,0.7587,3233.6,3233.0,6.01360596]
[1736900122926,0.03694171,3233.3,3233.0,6.01360596]
[1736900123129,0.7587,3233.6,3233.0,2.92051596]
[1736900123318,0.03694171,3233.2,3233.1,3.093]
[1736900123506,0.7587,3233.6,3233.1,3.093]
[1736900124015,0.03694171,3233.5,3233.1,3.093]
[1736900124214,0.03694171,3233.5,3232.3,2.92051596]
[1736900124215,0.7587,3233.4,3232.3,2.92051596]
[1736900124416,0.7587,3233.4,3232.5,3.09355]
[1736900124417,0.06955862,3233.3,3232.5,3.09355]
[1736900125540,0.7587,3233.1,3232.3,5.92051596]
[1736900125695,0.41730801,3233.0,3232.3,5.92051596]
[1736900126030,0.45472162,3233.0,3232.3,5.92051596]
[1736900126335,0.42257661,3233.0,3232.3,9.04519916]
[1736900126514,0.03741361,3233.0,3232.3,9.01426596]
[1736900126714,0.7587,3233.1,3232.3,9.01426596]
[1736900126915,0.03214501,3233.0,3232.3,2.92051596]
[1736900127116,3.12533501,3233.0,3232.3,2.92051596]
[1736900127323,0.3884035,3232.9,3232.3,2.92051596]
[1736900127520,0.42581711,3232.9,3232.3,2.92051596]
[1736900127729,0.03214501,3232.8,3232.3,2.92051596]
[1736900128032,0.3884035,3232.9,3232.3,2.92051596]
[1736900128235,0.03720268,3232.7,3232.3,2.92051596]
[1736900128450,3.09311,3233.0,3232.3,2.92051596]
[1736900128605,0.03720268,3232.6,3232.3,2.92051596]
[1736900128809,3.09311,3233.0,3232.3,2.92051596]
[1736900129004,5.32,3233.6,3232.0,3.09402]
[1736900129005,0.7587,3232.8,3232.0,2.92051596]
[1736900129330,0.7587,3232.6,3231.8,3.09421]
[1736900129498,0.03214501,3232.5,3231.7,2.92051596]
[1736900129696,0.03214501,3232.5,3231.7,6.01484596]
[1736900129937,0.03713608,3232.4,3231.7,6.01484596]
[1736900130248,0.03713608,3232.4,3231.8,3.1250994]
[1736900130418,0.03713608,3232.4,3231.9,3.09414]
[1736900130602,0.7587,3232.6,3231.9,3.09414]
[1736900130803,0.03713608,3232.5,3231.9,3.09414]
[1736900131003,0.03713608,3232.5,3232.1,3.09395]
[1736900131225,0.03713608,3232.5,3232.3,2.92051596]
[1736900131438,0.03713608,3232.5,3232.4,6.12460447]
[1736900131748,0.7587,3233.3,3232.7,3.09337]
[1736900132033,0.03576494,3233.2,3232.7,6.04481624]
[1736900132436,0.03576494,3233.2,3232.7,6.01388596]
[1736900132641,0.03576494,3233.2,3232.8,3.09325]
[1736900132841,0.03576494,3233.2,3232.9,3.09316]
[1736900133135,0.7587,3233.8,3233.1,2.92051596]
[1736900133334,0.7587,3233.8,3233.1,6.01343596]
[1736900133536,0.06846517,3233.7,3233.1,6.01343596]
[1736900133706,0.03632016,3233.7,3233.1,6.01343596]
[1736900134736,0.06846517,3233.7,3232.9,3.09317]
[1736900134942,0.39195052,3233.6,3232.9,3.0]
[1736900135142,0.03214501,3233.5,3232.9,3.0]
[1736900135440,0.03657549,3233.5,3232.9,3.0]
[1736900135638,0.03657549,3233.5,3232.9,6.12411826]
[1736900135837,0.03657549,3233.5,3232.9,3.03092826]
[1736900136038,0.03214501,3233.7,3232.9,3.0]
[1736900136245,0.03649224,3233.4,3232.9,6.12411826]
[1736900136407,0.3883105,3233.7,3232.9,6.12411826]
[1736900136604,0.03649224,3233.6,3232.9,6.12411826]
[1736900137037,0.03649224,3233.6,3232.9,3.03092826]
[1736900137246,0.7587,3233.2,3232.6,2.92051596]
[1736900137444,3.09314,3233.0,3232.0,6.81267596]
[1736900137620,0.03214501,3232.9,3232.1,3.0]
[1736900137819,0.03668649,3232.8,3232.1,3.0]
[1736900138016,0.7587,3232.7,3231.9,0.00489471]
[1736900138245,0.03214501,3232.6,3231.9,0.00489471]
[1736900138444,0.3884265,3232.5,3231.9,0.00489471]
[1736900138785,0.03214501,3232.4,3231.9,0.00489471]
[1736900138909,0.0687427,3232.4,3231.9,0.00489471]
[1736900139318,0.03659769,3232.4,3231.9,0.03583284]
[1736900139519,0.03659769,3232.4,3231.9,3.09904471]
[1736900139724,0.03214501,3232.6,3231.9,3.09904471]
[1736900139943,0.03625906,3232.3,3231.9,3.09904471]
[1736900140158,0.03214501,3232.6,3231.9,3.09904471]
[1736900140321,0.03625906,3232.2,3231.9,3.09904471]
[1736900140522,0.03214501,3232.6,3231.9,3.09904471]
[1736900140855,0.03625906,3232.5,3231.9,3.09904471]
[1736900141018,0.03625906,3232.5,3231.9,0.00489471]
[1736900141722,0.03625906,3232.5,3231.9,3.09904471]
[1736900142022,0.7587,3232.7,3231.9,3.09904471]
[1736900142242,0.42145906,3232.6,3231.9,3.09904471]
[1736900142644,0.03625906,3232.6,3231.9,6.63299741]
[1736900142849,0.03625906,3232.6,3232.0,3.09404]
[1736900143154,0.03625906,3232.6,3231.9,3.53884741]
[1736900143155,0.03214501,3232.6,3231.9,3.53884741]
[1736900143319,0.7587,3232.7,3231.9,3.53884741]
[1736900143320,0.03625906,3232.5,3231.9,3.53884741]
[1736900143519,0.03625906,3232.5,3231.9,6.66389553]
[1736900143743,0.7587,3232.7,3231.9,6.63295741]
[1736900143946,0.03625906,3232.4,3231.9,6.63295741]
[1736900144147,0.7587,3232.7,3231.9,6.63295741]
[1736900144148,0.7587,3232.7,3232.0,3.12497812]
[1736900144356,0.03625906,3232.3,3232.0,0.03093812]
[1736900144560,0.7587,3232.7,3232.0,0.38791667]
[1736900144756,0.7587,3232.7,3232.2,3.5339527]
[1736900145054,0.7587,3233.0,3232.4,3.09366]
[1736900145443,0.03584824,3232.9,3232.4,3.09366]
[1736900145648,0.03584824,3232.9,3232.5,0.03093152]
[1736900145974,0.03584824,3232.9,3232.8,7.3321527]
[1736900146321,0.03214501,3233.6,3233.0,3.09309]
[1736900146454,0.7587,3233.7,3233.0,3.09309]
[1736900146652,0.03618691,3233.5,3233.1,0.0309274]
[1736900146854,0.03619802,3233.6,3233.1,3.1238574]
[1736900147050,0.7587,3233.7,3233.1,3.09293]
[1736900147254,0.03629794,3233.5,3233.1,3.09293]
[1736900147456,0.7587,3233.7,3233.1,3.09293]
[1736900147651,0.03629794,3233.4,3233.1,3.09293]
[1736900147858,0.7587,3233.7,3233.1,3.09293]
[1736900148052,0.03630349,3233.3,3232.9,3.09315]
[1736900148258,0.7587,3233.7,3232.9,3.09315]
[1736900148460,0.03214501,3233.6,3232.9,3.09315]
[1736900148772,0.0684485,3233.6,3232.9,3.09315]
[1736900149466,0.0684485,3233.6,3232.8,7.3321527]
[1736900149670,0.0684485,3233.6,3232.8,3.5339527]
[1736900150229,0.03630349,3233.6,3232.9,0.0309296]
[1736900150546,4.236284,3233.7,3232.9,0.0309296]
[1736900150547,0.7587,3233.7,3233.0,3.09309]
[1736900150946,0.03630349,3233.6,3233.0,3.09309]
[1736900151140,0.03630349,3233.6,3232.9,0.38741783]
[1736900151141,0.03630349,3233.6,3233.1,3.12391739]
[1736900151555,0.03630349,3233.6,3233.1,3.09299]
[1736900152036,0.7587,3233.7,3233.1,3.09299]
[1736900152235,0.03630349,3233.6,3233.1,3.09299]
[1736900153670,0.03630349,3233.6,3232.9,3.3874138]
[1736900153845,0.03630349,3233.6,3233.2,3.09283]
[1736900154050,0.03630349,3233.6,3233.3,0.03092462]
[1736900157274,0.03630349,3233.6,3233.2,3.09283]
[1736900157460,0.03630349,3233.6,3233.3,3.09281]
[1736900157662,0.7614,3234.1,3233.4,3.8432337]
[1736900157970,0.7614,3234.1,3233.5,3.09262]
[1736900158352,0.03567856,3234.0,3233.5,3.09262]
[1736900159158,0.03567856,3234.0,3233.7,3.0924]
[1736900159364,0.03567856,3234.0,3233.8,3.12325251]
[1736900159887,0.03567856,3234.0,3233.8,3.09233]
[1736900160088,0.03567856,3234.0,3233.6,3.09248]
[1736900161377,0.03567856,3234.0,3233.4,3.09267]
[1736900161579,0.03214501,3234.0,3233.2,2.91314365]
[1736900161818,0.03578959,3233.9,3233.3,3.09273]
[1736900162118,0.03578959,3233.9,3233.5,2.91314365]
[1736900162329,0.03578959,3233.9,3233.7,3.09235]
[1736900162524,0.7614,3234.1,3233.8,2.91314365]
[1736900162679,0.7614,3234.1,3233.2,2.91314365]
[1736900162884,0.03214501,3234.0,3233.2,2.91314365]
[1736900163104,0.03214501,3234.0,3232.8,3.89052]
[1736900163105,0.7601,3233.9,3232.9,6.00631365]
[1736900163418,0.7601,3233.6,3232.9,2.91314365]
[1736900163779,0.03579516,3233.5,3232.9,3.20755089]
[1736900164012,0.03579516,3233.5,3233.1,3.09294]
[1736900164213,0.03579516,3233.4,3233.2,6.00603365]
[1736900164485,0.7601,3233.6,3233.2,6.00603365]
[1736900165131,0.03550084,3233.5,3233.2,6.00603365]
[1736900165305,0.03550084,3233.5,3233.3,3.09277]
[1736900165630,0.03550084,3233.5,3233.4,3.64271]
[1736900165836,0.7601,3234.2,3233.6,3.09246]
[1736900166035,0.7601,3234.2,3233.6,6.00560365]
[1736900166239,0.03556746,3234.1,3233.6,6.00560365]
[1736900166743,0.03556746,3234.1,3233.6,2.91314365]
[1736900167040,0.7601,3234.2,3233.6,2.91314365]
[1736900167389,0.03556746,3234.1,3233.6,2.91314365]
[1736900168102,0.06771247,3234.1,3233.3,2.91314365]
[1736900168321,0.7601,3234.2,3233.5,3.09261]
[1736900168640,0.7601,3234.2,3233.6,2.94406579]
[1736900168844,0.03556746,3234.1,3233.8,3.09226]
[1736900169047,0.7601,3234.2,3233.8,3.09226]
[1736900169229,0.03556746,3234.1,3233.8,3.09226]
[1736900169406,0.7601,3234.2,3233.8,3.69589258]
[1736900169605,0.03556746,3234.1,3233.8,3.69589258]
[1736900169843,0.7601,3234.2,3233.8,3.69589258]
[1736900170242,0.03556746,3234.1,3233.3,0.4311047]
[1736900170416,0.7601,3233.9,3232.9,3.20755089]
[1736900170614,0.7601,3233.7,3232.9,3.20755089]
[1736900170943,0.7601,3233.7,3233.0,0.03092701]
[1736900171104,0.7601,3233.7,3233.2,6.00603365]
[1736900171310,0.0359895,3233.6,3233.3,0.60060337]
[1736900171542,0.0359895,3233.6,3232.9,6.30074089]
[1736900171742,0.0359895,3233.6,3233.0,3.09301]
[1736900171948,0.0359895,3233.6,3232.9,0.29440724]
[1736900171949,0.06813451,3233.6,3232.9,0.29440724]
[1736900172411,0.06813451,3233.6,3232.9,3.29440724]
[1736900172848,0.7601,3233.5,3232.6,3.09345]
[1736900173158,0.06791239,3233.4,3232.6,3.09345]
[1736900173365,0.06791239,3233.4,3232.5,2.91314365]
[1736900173645,0.03576738,3233.4,3232.9,3.09319]
[1736900173847,0.06791239,3233.4,3232.8,2.91314365]
[1736900174010,0.7601,3233.3,3232.8,2.91314365]
[1736900174349,0.03554525,3233.2,3232.8,2.91314365]
[1736900174917,0.7601,3233.3,3232.8,2.91314365]
[1736900175223,0.03554525,3233.1,3232.8,2.91314365]
[1736900175408,0.7601,3233.3,3232.8,2.91314365]
[1736900175615,0.03554525,3233.0,3232.8,2.91314365]
[1736900175923,0.03554525,3232.9,3232.8,2.91314365]
[1736900176350,0.7601,3233.3,3232.8,2.91314365]
[1736900176753,0.03554525,3233.2,3232.8,2.91314365]
[1736900176950,0.7601,3233.3,3232.8,2.91314365]
[1736900177616,0.03554525,3233.2,3232.8,2.91314365]
[1736900177848,0.7601,3233.3,3232.8,2.91314365]
[1736900178253,0.03554525,3233.2,3232.8,2.91314365]
[1736900178555,0.7601,3233.3,3232.8,2.91314365]
[1736900178714,0.03554525,3233.1,3232.8,2.91314365]
[1736900178923,0.7601,3233.3,3232.8,6.63800464]
[1736900179237,0.03065054,3233.0,3232.8,6.60707601]
[1736900179444,0.7601,3233.3,3232.9,0.03092863]
[1736900180743,0.7601,3233.3,3232.8,3.51379601]
[1736900182257,0.03214501,3233.2,3232.5,2.91314365]
[1736900183359,0.03214501,3233.2,3232.5,6.00671365]
[1736900183959,0.7601,3233.3,3232.5,6.00671365]
[1736900184476,0.03214501,3233.2,3232.6,3.09346]
[1736900184685,0.03214501,3233.2,3232.5,2.91314365]
[1736900185045,0.7893,3233.0,3232.2,6.5372782]
[1736900185241,0.03214501,3232.9,3232.2,9.6311182]
[1736900185883,0.03214501,3232.9,3232.2,6.5372782]
[1736900186063,0.7893,3233.0,3232.2,6.5372782]
[1736900186064,0.7893,3233.0,3232.5,2.91314365]
[1736900186381,0.03290184,3232.9,3232.5,2.91314365]
[1736900186579,0.03290184,3232.9,3232.6,0.60067336]